[Event "Titled Tuesday Blitz June 21 Late 2022"]
[White "Yurovskykh, Oleksandr"]
[Black "Livaic, Leon"]
[WhiteFideId "14134020"]
[BlackFideId "14531534"]
[WhiteElo "2292"]
[BlackElo "2540"]
[Result "0-1"]
[Round "04"]
[TimeControl "180+1"]
[Date "2022.06.21"]
[WhiteClock "0:00:12"]
[BlackClock "0:00:18"]

1. d4 {[%clk 0:03:00]}  e6 {[%clk 0:02:59]} 2. Bf4 {[%clk 0:03:00]}  f5 {[%clk 0:02:58]} 3. e3 {[%clk 0:03:00]}  Nf6 {[%clk 0:02:58]} 4. Nf3 {[%clk 0:03:01]}  b6 {[%clk 0:02:59]} 5. Be2 {[%clk 0:03:01]}  Bb7 {[%clk 0:02:59]} 6. O-O {[%clk 0:03:02]}  Be7 {[%clk 0:03:00]} 7. Nfd2 {[%clk 0:03:03]}  O-O {[%clk 0:03:00]} 8. Bf3 {[%clk 0:03:03]}  d5 {[%clk 0:03:00]} 9. c4 {[%clk 0:03:03]}  Ne4 {[%clk 0:02:55]} 10. Nxe4 {[%clk 0:03:01]}  dxe4 {[%clk 0:02:50]} 11. Be2 {[%clk 0:03:01]}  Nd7 {[%clk 0:02:48]} 12. h3 {[%clk 0:02:58]}  Bf6 {[%clk 0:02:45]} 13. Bh2 {[%clk 0:02:53]}  c5 {[%clk 0:02:41]} 14. Nc3 {[%clk 0:02:53]}  cxd4 {[%clk 0:02:41]} 15. exd4 {[%clk 0:02:54]}  e5 {[%clk 0:02:39]} 16. d5 {[%clk 0:02:51]}  a5 {[%clk 0:02:36]} 17. Qc2 {[%clk 0:02:35]}  Nc5 {[%clk 0:02:35]} 18. Na4 {[%clk 0:02:34]}  Nxa4 {[%clk 0:02:30]} 19. Qxa4 {[%clk 0:02:35]}  f4 {[%clk 0:02:31]} 20. Bg4 {[%clk 0:02:33]}  Bc8 {[%clk 0:02:23]} 21. Bxc8 {[%clk 0:02:29]}  Qxc8 {[%clk 0:02:22]} 22. Qc2 {[%clk 0:02:27]}  Qc5 {[%clk 0:01:59]} 23. Qxe4 {[%clk 0:02:18]}  b5 {[%clk 0:01:59]} 24. Rac1 {[%clk 0:02:14]}  Rab8 {[%clk 0:01:53]} 25. b3 {[%clk 0:02:12]}  Rfd8 {[%clk 0:01:50]} 26. Kh1 {[%clk 0:01:53]}  bxc4 {[%clk 0:01:48]} 27. bxc4 {[%clk 0:01:53]}  Rb2 {[%clk 0:01:48]} 28. Bg1 {[%clk 0:01:54]}  Qd4 {[%clk 0:01:32]} 29. Qxd4 {[%clk 0:01:43]}  exd4 {[%clk 0:01:33]} 30. f3 {[%clk 0:01:43]}  d3 {[%clk 0:01:25]} 31. Rcd1 {[%clk 0:01:30]}  d2 {[%clk 0:01:25]} 32. Rf2 {[%clk 0:01:08]}  Bc3 {[%clk 0:01:24]} 33. Re2 {[%clk 0:01:08]}  Rxa2 {[%clk 0:01:14]} 34. Bb6 {[%clk 0:01:01]}  Rd7 {[%clk 0:01:02]} 35. Kh2 {[%clk 0:00:55]}  Rb2 {[%clk 0:00:53]} 36. Re6 {[%clk 0:00:41]}  a4 {[%clk 0:00:51]} 37. Bc5 {[%clk 0:00:22]}  Kf7 {[%clk 0:00:33]} 38. Kg1 {[%clk 0:00:19]}  Rc7 {[%clk 0:00:28]} 39. Rc6 {[%clk 0:00:10]}  Rxc6 {[%clk 0:00:17]} 40. dxc6 {[%clk 0:00:11]}  Ba5 {[%clk 0:00:16]} 41. Kf1 {[%clk 0:00:10]}  Rc2 {[%clk 0:00:17]} 42. c7 {[%clk 0:00:06]}  Bxc7 {[%clk 0:00:16]} 43. Bb4 {[%clk 0:00:06]}  Rxc4 {[%clk 0:00:14]} 44. Rxd2 {[%clk 0:00:05]}  Rxb4 {[%clk 0:00:14]} 45. Rd7+ {[%clk 0:00:06]}  Ke6 {[%clk 0:00:11]} 46. Rxc7 {[%clk 0:00:07]}  Kd5 {[%clk 0:00:10]} 47. Rxg7 {[%clk 0:00:06]}  Kc4 {[%clk 0:00:10]} 48. Rxh7 {[%clk 0:00:05]}  a3 {[%clk 0:00:10]} 49. Ra7 {[%clk 0:00:03]}  Kb3 {[%clk 0:00:11]} 50. h4 {[%clk 0:00:03]}  a2 {[%clk 0:00:11]} 51. Rxa2 {[%clk 0:00:01]}  Kxa2 {[%clk 0:00:12]} 52. h5 {[%clk 0:00:01]}  Rb5 {[%clk 0:00:12]} 53. Ke2 {[%clk 0:00:02]}  Rxh5 {[%clk 0:00:12]} 54. Kd3 {[%clk 0:00:02]}  Re5 {[%clk 0:00:12]} 55. Kd4 {[%clk 0:00:03]}  Re2 {[%clk 0:00:13]} 56. Kd3 {[%clk 0:00:03]}  Re8 {[%clk 0:00:11]} 57. Kd2 {[%clk 0:00:03]}  Kb3 {[%clk 0:00:11]} 58. Kd3 {[%clk 0:00:04]}  Kb4 {[%clk 0:00:12]} 59. Kd4 {[%clk 0:00:05]}  Re2 {[%clk 0:00:12]} 60. Kd3 {[%clk 0:00:05]}  Rxg2 {[%clk 0:00:12]} 61. Ke4 {[%clk 0:00:06]}  Kc5 {[%clk 0:00:13]} 62. Kxf4 {[%clk 0:00:07]}  Kd5 {[%clk 0:00:13]} 63. Kf5 {[%clk 0:00:08]}  Rf2 {[%clk 0:00:13]} 64. f4 {[%clk 0:00:09]}  Rf1 {[%clk 0:00:14]} 65. Kg5 {[%clk 0:00:08]}  Ke4 {[%clk 0:00:14]} 66. f5 {[%clk 0:00:08]}  Rxf5+ {[%clk 0:00:15]} 67. Kg6 {[%clk 0:00:09]}  Ke5 {[%clk 0:00:15]} 68. Kg7 {[%clk 0:00:10]}  Ke6 {[%clk 0:00:16]} 69. Kg6 {[%clk 0:00:11]}  Re5 {[%clk 0:00:16]} 70. Kh6 {[%clk 0:00:11]}  Kf6 {[%clk 0:00:17]} 71. Kh7 {[%clk 0:00:11]}  Rh5+ {[%clk 0:00:17]} 72. Kg8 {[%clk 0:00:11]}  Rh4 {[%clk 0:00:18]} 73. Kf8 {[%clk 0:00:12]}  Rh8# {[%clk 0:00:18]} 0-1


[Site "https://www.chess.com"]

[Event "Titled Tuesday Blitz June 21 Late 2022"]
[White "Zhou, Qiyu"]
[Black "D`Arruda, Ricardo D."]
[WhiteFideId "505161"]
[BlackFideId "100692"]
[WhiteElo "1925"]
[BlackElo "2494"]
[Result "0-1"]
[Round "04"]
[TimeControl "180+1"]
[Date "2022.06.22"]
[WhiteClock "0:00:02"]
[BlackClock "0:01:00"]

1. e4 {[%clk 0:03:00]}  c5 {[%clk 0:02:57]} 2. Nf3 {[%clk 0:03:00]}  Nc6 {[%clk 0:02:57]} 3. d4 {[%clk 0:03:01]}  cxd4 {[%clk 0:02:58]} 4. Nxd4 {[%clk 0:03:01]}  e5 {[%clk 0:02:57]} 5. Nb5 {[%clk 0:03:00]}  a6 {[%clk 0:02:58]} 6. N5a3 {[%clk 0:02:57]}  Nf6 {[%clk 0:02:56]} 7. Nc3 {[%clk 0:02:57]}  Bb4 {[%clk 0:02:57]} 8. Bd3 {[%clk 0:02:53]}  d5 {[%clk 0:02:57]} 9. exd5 {[%clk 0:02:45]}  Qxd5 {[%clk 0:02:58]} 10. O-O {[%clk 0:02:41]}  Bxc3 {[%clk 0:02:58]} 11. bxc3 {[%clk 0:02:41]}  O-O {[%clk 0:02:55]} 12. Bg5 {[%clk 0:02:32]}  e4 {[%clk 0:02:54]} 13. Bxf6 {[%clk 0:02:27]}  exd3 {[%clk 0:02:49]} 14. Bh4 {[%clk 0:02:08]}  Qe4 {[%clk 0:02:48]} 15. Bg3 {[%clk 0:02:05]}  dxc2 {[%clk 0:02:47]} 16. Nxc2 {[%clk 0:01:59]}  Rd8 {[%clk 0:02:40]} 17. Qc1 {[%clk 0:01:48]}  Bf5 {[%clk 0:02:40]} 18. Ne3 {[%clk 0:01:45]}  Be6 {[%clk 0:02:39]} 19. Re1 {[%clk 0:01:43]}  Rac8 {[%clk 0:02:37]} 20. Qb2 {[%clk 0:01:22]}  b5 {[%clk 0:02:22]} 21. Qa3 {[%clk 0:01:06]}  a5 {[%clk 0:02:17]} 22. Rad1 {[%clk 0:00:48]}  h6 {[%clk 0:02:13]} 23. Nd5 {[%clk 0:00:31]}  Rxd5 {[%clk 0:02:05]} 24. f3 {[%clk 0:00:08]}  Rxd1 {[%clk 0:02:02]} 25. fxe4 {[%clk 0:00:08]}  Rxe1+ {[%clk 0:02:00]} 26. Bxe1 {[%clk 0:00:09]}  a4 {[%clk 0:01:53]} 27. Qd6 {[%clk 0:00:07]}  Bxa2 {[%clk 0:01:42]} 28. Bf2 {[%clk 0:00:07]}  Be6 {[%clk 0:01:36]} 29. Bc5 {[%clk 0:00:07]}  Na5 {[%clk 0:01:13]} 30. Bb4 {[%clk 0:00:05]}  Nc4 {[%clk 0:01:10]} 31. Qa6 {[%clk 0:00:04]}  Rb8 {[%clk 0:01:06]} 32. Qa7 {[%clk 0:00:04]}  Rd8 {[%clk 0:01:04]} 33. h3 {[%clk 0:00:02]}  Rd1+ {[%clk 0:01:03]} 34. Kh2 {[%clk 0:00:03]}  Ra1 {[%clk 0:01:03]} 35. Qb8+ {[%clk 0:00:03]}  Kh7 {[%clk 0:01:02]} 36. Qxb5 {[%clk 0:00:03]}  a3 {[%clk 0:01:01]} 37. Qc5 {[%clk 0:00:02]}  a2 {[%clk 0:01:00]} 0-1


[Site "https://www.chess.com"]

[Event "Titled Tuesday Blitz June 21 Late 2022"]
[White "Zhurbinsky, David"]
[Black "Cabarkapa, Novak"]
[WhiteFideId "2072904"]
[BlackFideId "943746"]
[WhiteElo "2546"]
[BlackElo "2433"]
[Result "1-0"]
[Round "04"]
[TimeControl "180+1"]
[Date "2022.06.22"]
[WhiteClock "0:00:04"]
[BlackClock "0:00:01"]

1. e4 {[%clk 0:03:00]}  c6 {[%clk 0:02:53]} 2. d4 {[%clk 0:03:00]}  d5 {[%clk 0:02:53]} 3. Nd2 {[%clk 0:03:01]}  g6 {[%clk 0:02:47]} 4. Ngf3 {[%clk 0:02:59]}  Bg7 {[%clk 0:02:47]} 5. c3 {[%clk 0:02:54]}  a5 {[%clk 0:02:41]} 6. Bd3 {[%clk 0:02:54]}  Na6 {[%clk 0:02:40]} 7. O-O {[%clk 0:02:53]}  Nc7 {[%clk 0:02:41]} 8. e5 {[%clk 0:02:49]}  Nh6 {[%clk 0:02:37]} 9. Nb3 {[%clk 0:02:45]}  Bf5 {[%clk 0:02:36]} 10. Bxh6 {[%clk 0:02:10]}  Bxh6 {[%clk 0:02:37]} 11. Bxf5 {[%clk 0:02:11]}  gxf5 {[%clk 0:02:37]} 12. Nh4 {[%clk 0:02:11]}  e6 {[%clk 0:02:28]} 13. Qh5 {[%clk 0:02:11]}  Qg5 {[%clk 0:02:29]} 14. Qxg5 {[%clk 0:02:00]}  Bxg5 {[%clk 0:02:30]} 15. Nf3 {[%clk 0:02:00]}  Bh6 {[%clk 0:02:26]} 16. Nc5 {[%clk 0:01:52]}  b6 {[%clk 0:02:25]} 17. Nb7 {[%clk 0:01:39]}  Ke7 {[%clk 0:02:00]} 18. Nd6 {[%clk 0:01:27]}  f6 {[%clk 0:01:47]} 19. c4 {[%clk 0:01:22]}  fxe5 {[%clk 0:01:43]} 20. dxe5 {[%clk 0:01:04]}  c5 {[%clk 0:01:44]} 21. cxd5 {[%clk 0:00:58]}  Nxd5 {[%clk 0:01:45]} 22. Rad1 {[%clk 0:00:54]}  Rhf8 {[%clk 0:01:43]} 23. Nh4 {[%clk 0:00:50]}  Nb4 {[%clk 0:01:11]} 24. a3 {[%clk 0:00:50]}  Nc6 {[%clk 0:01:11]} 25. f4 {[%clk 0:00:50]}  Nd4 {[%clk 0:01:06]} 26. Nc4 {[%clk 0:00:51]}  Ne2+ {[%clk 0:00:58]} 27. Kh1 {[%clk 0:00:50]}  b5 {[%clk 0:00:41]} 28. Nd6 {[%clk 0:00:48]}  Nd4 {[%clk 0:00:36]} 29. Nf3 {[%clk 0:00:34]}  Ne2 {[%clk 0:00:27]} 30. g3 {[%clk 0:00:32]}  b4 {[%clk 0:00:21]} 31. Rf2 {[%clk 0:00:29]}  Nxf4 {[%clk 0:00:16]} 32. gxf4 {[%clk 0:00:28]}  Bxf4 {[%clk 0:00:16]} 33. Rg2 {[%clk 0:00:22]}  Rg8 {[%clk 0:00:16]} 34. axb4 {[%clk 0:00:17]}  Rxg2 {[%clk 0:00:14]} 35. Kxg2 {[%clk 0:00:18]}  axb4 {[%clk 0:00:14]} 36. Nc4 {[%clk 0:00:15]}  Ra2 {[%clk 0:00:12]} 37. Rd6 {[%clk 0:00:10]}  Bxe5 {[%clk 0:00:09]} 38. Nfxe5 {[%clk 0:00:10]}  Rxb2+ {[%clk 0:00:10]} 39. Kg3 {[%clk 0:00:05]}  Rc2 {[%clk 0:00:05]} 40. Rd7+ {[%clk 0:00:05]}  Ke8 {[%clk 0:00:05]} 41. Nd6+ {[%clk 0:00:05]}  Kf8 {[%clk 0:00:06]} 42. Rf7+ {[%clk 0:00:05]}  Kg8 {[%clk 0:00:06]} 43. Nd7 {[%clk 0:00:05]}  f4+ {[%clk 0:00:01]} 44. Kf3 {[%clk 0:00:04]} 1-0


[Site "https://www.chess.com"]

[Event "Titled Tuesday Blitz June 21 Late 2022"]
[White "Abarca Gonzalez, Nicolas"]
[Black "Le, Tuan Minh"]
[WhiteFideId "3409422"]
[BlackFideId "12401153"]
[WhiteElo "2504"]
[BlackElo "2530"]
[Result "0-1"]
[Round "05"]
[TimeControl "180+1"]
[Date "2022.06.21"]
[WhiteClock "0:00:31"]
[BlackClock "0:00:10"]

1. e4 {[%clk 0:03:00]}  c5 {[%clk 0:02:50]} 2. Nf3 {[%clk 0:02:59]}  Nf6 {[%clk 0:02:49]} 3. e5 {[%clk 0:02:56]}  Nd5 {[%clk 0:02:49]} 4. g3 {[%clk 0:02:56]}  g6 {[%clk 0:02:49]} 5. Bg2 {[%clk 0:02:55]}  Bg7 {[%clk 0:02:49]} 6. O-O {[%clk 0:02:55]}  Nc6 {[%clk 0:02:49]} 7. Re1 {[%clk 0:02:55]}  O-O {[%clk 0:02:49]} 8. Nc3 {[%clk 0:02:54]}  Nc7 {[%clk 0:02:44]} 9. d3 {[%clk 0:02:37]}  b6 {[%clk 0:02:41]} 10. Bf4 {[%clk 0:02:33]}  Ne6 {[%clk 0:02:39]} 11. Qd2 {[%clk 0:02:32]}  Nxf4 {[%clk 0:02:32]} 12. Qxf4 {[%clk 0:02:26]}  Bb7 {[%clk 0:02:33]} 13. h4 {[%clk 0:02:26]}  Nb4 {[%clk 0:02:07]} 14. Re2 {[%clk 0:02:24]}  f6 {[%clk 0:01:57]} 15. exf6 {[%clk 0:02:23]}  Bxf6 {[%clk 0:01:49]} 16. Qh6 {[%clk 0:02:23]}  Bg7 {[%clk 0:01:47]} 17. Qe3 {[%clk 0:02:04]}  e6 {[%clk 0:01:43]} 18. h5 {[%clk 0:01:58]}  gxh5 {[%clk 0:01:40]} 19. Nh4 {[%clk 0:01:55]}  Bxg2 {[%clk 0:01:33]} 20. Kxg2 {[%clk 0:01:52]}  Qf6 {[%clk 0:01:30]} 21. Rh1 {[%clk 0:01:42]}  Nc6 {[%clk 0:01:17]} 22. f4 {[%clk 0:01:23]}  Nd4 {[%clk 0:01:14]} 23. Rf2 {[%clk 0:01:23]}  Rae8 {[%clk 0:01:09]} 24. Ne4 {[%clk 0:01:22]}  Qe7 {[%clk 0:01:09]} 25. c3 {[%clk 0:01:16]}  Nf5 {[%clk 0:00:55]} 26. Qf3 {[%clk 0:01:16]}  d5 {[%clk 0:00:55]} 27. Ng5 {[%clk 0:01:07]}  Nxh4+ {[%clk 0:00:44]} 28. Rxh4 {[%clk 0:01:08]}  Bf6 {[%clk 0:00:44]} 29. Qxh5 {[%clk 0:01:04]}  Bxg5 {[%clk 0:00:45]} 30. fxg5 {[%clk 0:00:58]}  Rxf2+ {[%clk 0:00:45]} 31. Kxf2 {[%clk 0:00:59]}  Rf8+ {[%clk 0:00:45]} 32. Kg2 {[%clk 0:01:00]}  Qf7 {[%clk 0:00:44]} 33. Qxf7+ {[%clk 0:00:46]}  Rxf7 {[%clk 0:00:42]} 34. Rh6 {[%clk 0:00:47]}  Re7 {[%clk 0:00:42]} 35. g6 {[%clk 0:00:41]}  hxg6 {[%clk 0:00:41]} 36. Rxg6+ {[%clk 0:00:42]}  Kf7 {[%clk 0:00:42]} 37. Rh6 {[%clk 0:00:43]}  Kg7 {[%clk 0:00:42]} 38. Rh5 {[%clk 0:00:41]}  e5 {[%clk 0:00:41]} 39. Kf3 {[%clk 0:00:41]}  Kg6 {[%clk 0:00:40]} 40. g4 {[%clk 0:00:41]}  Rf7+ {[%clk 0:00:36]} 41. Ke3 {[%clk 0:00:40]}  d4+ {[%clk 0:00:25]} 42. Ke4 {[%clk 0:00:29]}  Rf4+ {[%clk 0:00:19]} 43. Kxe5 {[%clk 0:00:29]}  Rxg4 {[%clk 0:00:19]} 44. Rh2 {[%clk 0:00:30]}  dxc3 {[%clk 0:00:10]} 45. bxc3 {[%clk 0:00:31]}  Rg3 {[%clk 0:00:10]} 0-1


[Site "https://www.chess.com"]

[Event "Titled Tuesday Blitz June 21 Late 2022"]
[White "Adewumi, Tanitoluwa"]
[Black "Rychkov, Roman"]
[WhiteFideId "30966396"]
[BlackFideId "30985595"]
[WhiteElo "2534"]
[BlackElo "2306"]
[Result "1-0"]
[Round "05"]
[TimeControl "180+1"]
[Date "2022.06.22"]
[WhiteClock "0:00:19"]
[BlackClock "0:00:24"]

1. e4 {[%clk 0:03:00]}  e5 {[%clk 0:03:00]} 2. Nf3 {[%clk 0:03:00]}  Nc6 {[%clk 0:03:01]} 3. Bc4 {[%clk 0:03:00]}  Bc5 {[%clk 0:03:01]} 4. d3 {[%clk 0:03:00]}  Nf6 {[%clk 0:03:01]} 5. O-O {[%clk 0:03:00]}  d6 {[%clk 0:03:02]} 6. Re1 {[%clk 0:02:56]}  a6 {[%clk 0:03:02]} 7. c3 {[%clk 0:02:55]}  Na5 {[%clk 0:03:02]} 8. b4 {[%clk 0:02:54]}  Nxc4 {[%clk 0:03:02]} 9. bxc5 {[%clk 0:02:54]}  Na5 {[%clk 0:03:00]} 10. cxd6 {[%clk 0:02:48]}  cxd6 {[%clk 0:02:56]} 11. a4 {[%clk 0:02:49]}  O-O {[%clk 0:02:55]} 12. c4 {[%clk 0:02:48]}  Nc6 {[%clk 0:02:52]} 13. Nc3 {[%clk 0:02:39]}  Bg4 {[%clk 0:02:52]} 14. Be3 {[%clk 0:02:38]}  Qd7 {[%clk 0:02:38]} 15. h3 {[%clk 0:02:31]}  Bh5 {[%clk 0:02:31]} 16. Rb1 {[%clk 0:01:53]}  h6 {[%clk 0:02:29]} 17. Kh2 {[%clk 0:01:47]}  Rab8 {[%clk 0:02:22]} 18. Nd5 {[%clk 0:01:18]}  Nxd5 {[%clk 0:02:22]} 19. exd5 {[%clk 0:01:09]}  Ne7 {[%clk 0:02:20]} 20. Nxe5 {[%clk 0:01:03]}  Qf5 {[%clk 0:01:59]} 21. Ng4 {[%clk 0:00:36]}  Ng6 {[%clk 0:01:51]} 22. f3 {[%clk 0:00:18]}  Rfe8 {[%clk 0:01:47]} 23. Bxh6 {[%clk 0:00:13]}  Bxg4 {[%clk 0:01:33]} 24. hxg4 {[%clk 0:00:13]}  Qf6 {[%clk 0:01:33]} 25. Bd2 {[%clk 0:00:10]}  Qh4+ {[%clk 0:01:34]} 26. Kg1 {[%clk 0:00:10]}  Ne5 {[%clk 0:01:30]} 27. Re3 {[%clk 0:00:08]}  Ng6 {[%clk 0:01:05]} 28. Qe1 {[%clk 0:00:07]}  Rxe3 {[%clk 0:01:03]} 29. Qxh4 {[%clk 0:00:06]}  Nxh4 {[%clk 0:00:55]} 30. Bxe3 {[%clk 0:00:07]}  Ng6 {[%clk 0:00:46]} 31. d4 {[%clk 0:00:06]}  Kf8 {[%clk 0:00:42]} 32. Kf2 {[%clk 0:00:06]}  Ke7 {[%clk 0:00:42]} 33. Rb6 {[%clk 0:00:07]}  Kd7 {[%clk 0:00:42]} 34. c5 {[%clk 0:00:07]}  Ne7 {[%clk 0:00:31]} 35. Rxd6+ {[%clk 0:00:07]}  Ke8 {[%clk 0:00:31]} 36. Bf4 {[%clk 0:00:07]}  Rc8 {[%clk 0:00:25]} 37. a5 {[%clk 0:00:07]}  f6 {[%clk 0:00:24]} 38. g5 {[%clk 0:00:06]}  Kf7 {[%clk 0:00:14]} 39. gxf6 {[%clk 0:00:07]}  gxf6 {[%clk 0:00:15]} 40. Rd7 {[%clk 0:00:07]}  Ke8 {[%clk 0:00:14]} 41. Rxb7 {[%clk 0:00:08]}  Nxd5 {[%clk 0:00:15]} 42. Bd6 {[%clk 0:00:08]}  Rc6 {[%clk 0:00:10]} 43. Rb6 {[%clk 0:00:07]}  Nxb6 {[%clk 0:00:08]} 44. axb6 {[%clk 0:00:07]}  Kd7 {[%clk 0:00:05]} 45. b7 {[%clk 0:00:07]}  Rc8 {[%clk 0:00:01]} 46. bxc8=Q+ {[%clk 0:00:03]}  Kxc8 {[%clk 0:00:02]} 47. c6 {[%clk 0:00:04]}  a5 {[%clk 0:00:02]} 48. d5 {[%clk 0:00:05]}  f5 {[%clk 0:00:02]} 49. Ba3 {[%clk 0:00:06]}  f4 {[%clk 0:00:03]} 50. Ke2 {[%clk 0:00:06]}  Kc7 {[%clk 0:00:04]} 51. Kd3 {[%clk 0:00:07]}  Kb6 {[%clk 0:00:04]} 52. Ke4 {[%clk 0:00:07]}  Kb5 {[%clk 0:00:04]} 53. Kxf4 {[%clk 0:00:08]}  Ka4 {[%clk 0:00:04]} 54. c7 {[%clk 0:00:09]}  Kxa3 {[%clk 0:00:05]} 55. c8=Q {[%clk 0:00:10]}  a4 {[%clk 0:00:06]} 56. Qa6 {[%clk 0:00:11]}  Kb2 {[%clk 0:00:06]} 57. Qxa4 {[%clk 0:00:11]}  Kc3 {[%clk 0:00:07]} 58. d6 {[%clk 0:00:12]}  Kb2 {[%clk 0:00:07]} 59. Qb3+ {[%clk 0:00:12]}  Kc1 {[%clk 0:00:08]} 60. Qc2+ {[%clk 0:00:12]}  Kxc2 {[%clk 0:00:09]} 61. d7 {[%clk 0:00:12]}  Kd1 {[%clk 0:00:09]} 62. d8=Q+ {[%clk 0:00:13]}  Ke2 {[%clk 0:00:10]} 63. Qd2+ {[%clk 0:00:13]}  Kxd2 {[%clk 0:00:11]} 64. g4 {[%clk 0:00:13]}  Ke2 {[%clk 0:00:12]} 65. g5 {[%clk 0:00:13]}  Kd3 {[%clk 0:00:12]} 66. g6 {[%clk 0:00:14]}  Ke2 {[%clk 0:00:13]} 67. g7 {[%clk 0:00:14]}  Kf2 {[%clk 0:00:14]} 68. g8=Q {[%clk 0:00:14]}  Ke2 {[%clk 0:00:15]} 69. Qg2+ {[%clk 0:00:15]}  Ke1 {[%clk 0:00:16]} 70. Qe2+ {[%clk 0:00:15]}  Kxe2 {[%clk 0:00:17]} 71. Ke4 {[%clk 0:00:15]}  Kf2 {[%clk 0:00:17]} 72. f4 {[%clk 0:00:16]}  Kg3 {[%clk 0:00:18]} 73. f5 {[%clk 0:00:16]}  Kg4 {[%clk 0:00:19]} 74. f6 {[%clk 0:00:16]}  Kg5 {[%clk 0:00:20]} 75. f7 {[%clk 0:00:17]}  Kg6 {[%clk 0:00:21]} 76. f8=Q {[%clk 0:00:17]}  Kh7 {[%clk 0:00:22]} 77. Qf6 {[%clk 0:00:17]}  Kg8 {[%clk 0:00:22]} 78. Qe7 {[%clk 0:00:18]}  Kh8 {[%clk 0:00:22]} 79. Kf5 {[%clk 0:00:18]}  Kg8 {[%clk 0:00:23]} 80. Kg6 {[%clk 0:00:19]}  Kh8 {[%clk 0:00:24]} 81. Qf8# {[%clk 0:00:19]} 1-0


[Site "https://www.chess.com"]

[Event "Titled Tuesday Blitz June 21 Late 2022"]
[White "Alexiadis, Hristos"]
[Black "Kamsky, Gata"]
[WhiteFideId "4249623"]
[BlackFideId "2000024"]
[WhiteElo "2416"]
[BlackElo "2645"]
[Result "0-1"]
[Round "05"]
[TimeControl "180+1"]
[Date "2022.06.21"]
[WhiteClock "0:00:10"]
[BlackClock "0:00:12"]

1. e4 {[%clk 0:03:00]}  e5 {[%clk 0:02:53]} 2. Nf3 {[%clk 0:03:01]}  Nc6 {[%clk 0:02:53]} 3. Bb5 {[%clk 0:03:01]}  a6 {[%clk 0:02:46]} 4. Ba4 {[%clk 0:03:01]}  Nf6 {[%clk 0:02:45]} 5. Nc3 {[%clk 0:03:00]}  d6 {[%clk 0:02:39]} 6. O-O {[%clk 0:03:00]}  b5 {[%clk 0:02:34]} 7. Bb3 {[%clk 0:03:00]}  Na5 {[%clk 0:02:34]} 8. h3 {[%clk 0:02:56]}  Be7 {[%clk 0:02:32]} 9. Re1 {[%clk 0:02:55]}  Bb7 {[%clk 0:02:28]} 10. d3 {[%clk 0:02:47]}  O-O {[%clk 0:02:26]} 11. Ne2 {[%clk 0:02:46]}  c5 {[%clk 0:02:23]} 12. Ng3 {[%clk 0:02:45]}  Nxb3 {[%clk 0:02:18]} 13. axb3 {[%clk 0:02:44]}  g6 {[%clk 0:02:18]} 14. c4 {[%clk 0:02:41]}  Nd7 {[%clk 0:02:13]} 15. Bh6 {[%clk 0:02:38]}  Re8 {[%clk 0:02:12]} 16. Qd2 {[%clk 0:02:38]}  Nf8 {[%clk 0:02:11]} 17. Ra5 {[%clk 0:02:28]}  b4 {[%clk 0:02:10]} 18. Raa1 {[%clk 0:02:24]}  Ne6 {[%clk 0:02:10]} 19. Be3 {[%clk 0:02:25]}  Qd7 {[%clk 0:02:05]} 20. Rf1 {[%clk 0:02:25]}  f6 {[%clk 0:01:58]} 21. Nh2 {[%clk 0:02:24]}  Rf8 {[%clk 0:01:57]} 22. f4 {[%clk 0:02:18]}  exf4 {[%clk 0:01:53]} 23. Bxf4 {[%clk 0:02:19]}  Nxf4 {[%clk 0:01:43]} 24. Qxf4 {[%clk 0:02:19]}  Qe6 {[%clk 0:01:29]} 25. Ng4 {[%clk 0:02:18]}  Kh8 {[%clk 0:01:28]} 26. Kh1 {[%clk 0:02:17]}  Rae8 {[%clk 0:01:26]} 27. Rae1 {[%clk 0:02:03]}  Bd8 {[%clk 0:01:21]} 28. Qf2 {[%clk 0:01:54]}  h5 {[%clk 0:00:55]} 29. Ne3 {[%clk 0:01:54]}  Qe5 {[%clk 0:00:54]} 30. Nd5 {[%clk 0:01:45]}  Kg7 {[%clk 0:00:48]} 31. Nf5+ {[%clk 0:00:55]}  Kh7 {[%clk 0:00:28]} 32. Nfe3 {[%clk 0:00:45]}  Bc8 {[%clk 0:00:25]} 33. Qf3 {[%clk 0:00:44]}  Qg5 {[%clk 0:00:23]} 34. Re2 {[%clk 0:00:42]}  Bd7 {[%clk 0:00:19]} 35. Ra1 {[%clk 0:00:40]}  Bc8 {[%clk 0:00:19]} 36. Rf1 {[%clk 0:00:37]}  Kg7 {[%clk 0:00:18]} 37. Ref2 {[%clk 0:00:35]}  Re5 {[%clk 0:00:18]} 38. Kh2 {[%clk 0:00:32]}  Qh4 {[%clk 0:00:17]} 39. Qg3 {[%clk 0:00:28]}  Qxg3+ {[%clk 0:00:16]} 40. Kxg3 {[%clk 0:00:29]}  f5 {[%clk 0:00:16]} 41. exf5 {[%clk 0:00:29]}  Bg5 {[%clk 0:00:15]} 42. f6+ {[%clk 0:00:25]}  Kf7 {[%clk 0:00:15]} 43. Rf3 {[%clk 0:00:23]}  Rfe8 {[%clk 0:00:14]} 44. Kf2 {[%clk 0:00:22]}  Bb7 {[%clk 0:00:14]} 45. Ra1 {[%clk 0:00:11]}  Bxe3+ {[%clk 0:00:13]} 46. Rxe3 {[%clk 0:00:11]}  Bxd5 {[%clk 0:00:13]} 47. Rxe5 {[%clk 0:00:11]}  Rxe5 {[%clk 0:00:14]} 48. cxd5 {[%clk 0:00:12]}  Kxf6 {[%clk 0:00:14]} 49. Rxa6 {[%clk 0:00:12]}  Rxd5 {[%clk 0:00:14]} 50. Ke3 {[%clk 0:00:12]}  Kg5 {[%clk 0:00:14]} 51. g3 {[%clk 0:00:12]}  h4 {[%clk 0:00:14]} 52. gxh4+ {[%clk 0:00:12]}  Kxh4 {[%clk 0:00:14]} 53. Ra8 {[%clk 0:00:13]}  Kxh3 {[%clk 0:00:14]} 54. Rg8 {[%clk 0:00:13]}  g5 {[%clk 0:00:13]} 55. Ke4 {[%clk 0:00:11]}  Rd4+ {[%clk 0:00:14]} 56. Kf3 {[%clk 0:00:12]}  g4+ {[%clk 0:00:14]} 57. Ke3 {[%clk 0:00:12]}  Kg2 {[%clk 0:00:13]} 58. Rg6 {[%clk 0:00:10]}  g3 {[%clk 0:00:14]} 59. Rg4 {[%clk 0:00:10]}  Rxg4 {[%clk 0:00:12]} 0-1


[Site "https://www.chess.com"]